{"text_format":"1","workbook":"xlsx","n_sheets":4,"sheets":["Hoja3","Formato de Hoja de Vida","Hoja1","Calculadora de Tiempo"],"not_rendered":{"charts":0,"images":2,"macros":1,"external_links":0,"defined_names":661,"comments":0,"pivot_tables":0},"unopened":[],"bounds":{"document_bytes":16777216,"sheet_cells":100000,"rows_first":2000,"rows_last":500,"rows_between":2000,"halvings":0,"cell_chars":16384,"cell_head_chars":4096},"cells_cut":0,"cells_raw":0,"read":"whole","date_system":"1900"}

{"sheet":"Hoja3","index":0,"n_rows":16,"n_cols":17,"rows_kept":16,"cut":false,"hidden":true,"merged":[]}
["Política de seguridad","Estado civil","Género","Documento de identidad","Medio informativo","Secundaria","Habilitación profesional","Situación universitaria","Técnico básico","Técnico superior","Doctorado","Maestría","Tipo de capacitación","Conocimiento","Disponibilidad para viajar","Nivel de Puesto"]
["Seleccione…","Seleccione…","Seleccione…","Seleccione…","Seleccione…","Seleccione…","Seleccione…","Seleccione…","Seleccione…","Seleccione…","Seleccione…","Seleccione…","Seleccione…","Seleccione…","Seleccione…","Seleccione…","Seleccione…"]
["SI","Soltero","Masculino","DNI","Web institucional","Completa","Habilitado","Egresado","Egresado","Egresado ","Egresado","Egresado","Master","Si","Si","Practicante Pre Profesional","Básico"]
["NO","Casado","Femenino","Carnet de extranjería","Páginas laborales",null,"No habilitado","Bachiller",null,"Titulado","Doctor","Magister","Diplomado","No","No","Practicante Profesional","Intermedio"]
[null,"Divorciado",null,"Documento de viaje","Ferias laborales",null,null,"Titulado",null,null,null,null,"Curso",null,null,"Auxiliar","Avanzado"]
[null,"Viudo",null,null,"Referido",null,null,null,null,null,null,null,"Seminario",null,null,"Asistente"]
[null,"Conviviente",null,null,"Otros",null,null,null,null,null,null,null,"Taller",null,null,"Analista"]
[null,null,null,null,null,null,null,null,null,null,null,null,"Conferencia",null,null,"Especialista"]
[null,"Sector","Rubro","Personal a cargo",null,null,null,null,null,null,null,null,"Especialización",null,null,"Supervisor"]
[null,"Seleccione…","Seleccione…","Seleccione…",null,null,null,null,null,null,null,null,null,null,null,"Coordinador"]
[null,"Público","Hidrocarburos","Sin personal a cargo",null,null,null,null,null,null,null,null,null,null,null,"Jefe"]
[null,"Privado","Minería","Entre 1 y 3 personas",null,null,null,null,null,null,null,null,null,null,null,"Gerente"]
[null,null,"Electricidad","Entre 4 y 10 personas"]
[null,null,"Gas Natural","Entre 11  y 20 personas"]
[null,null,"Energía","Más de 20 personas"]
[null,null,"Otros"]

{"sheet":"Formato de Hoja de Vida","index":1,"n_rows":267,"n_cols":35,"rows_kept":267,"cut":false,"hidden":false,"merged":[[69,25,69,27],[70,25,70,27],[71,25,71,27],[69,7,69,12],[70,7,70,12],[71,7,71,12],[69,23,69,24],[70,23,70,24],[71,23,71,24],[234,0,234,16],[237,15,237,18],[237,19,237,23],[238,15,238,18],[249,0,249,27],[251,0,251,16],[144,1,144,15],[144,16,144,27],[208,1,208,15],[208,16,208,27],[209,1,209,15],[209,16,209,27],[210,1,210,15],[210,16,210,27],[239,2,239,5],[236,15,236,23],[240,15,240,18],[240,19,240,23],[236,2,236,13],[237,6,237,13],[222,1,222,15],[222,16,222,27],[223,1,223,15],[223,16,223,27],[226,1,226,15],[226,16,226,27],[206,1,206,15],[206,16,206,27],[207,1,207,15],[207,16,207,27],[213,25,215,27],[212,25,212,27],[213,0,213,2],[212,13,212,14],[215,13,215,14],[215,3,215,12],[215,0,215,2],[211,0,211,27],[219,0,219,24],[214,0,214,2],[214,3,214,12],[214,13,214,14],[212,0,212,2],[215,15,215,24],[224,1,224,15],[224,16,224,27],[225,1,225,15],[225,16,225,27],[214,15,214,24],[213,13,213,14],[212,3,212,12],[213,15,213,19],[213,21,213,24],[213,3,213,12],[217,8,217,12],[217,23,217,24],[212,15,212,18],[212,21,212,24],[220,0,220,27],[221,1,221,15],[221,16,221,27],[205,1,205,15],[205,16,205,27],[195,0,195,27],[197,0,197,2],[196,0,196,2],[203,0,203,24],[199,13,199,14],[196,13,196,14],[197,13,197,14],[196,15,196,18],[196,21,196,24],[201,13,201,15],[197,15,197,19],[197,21,197,24],[201,8,201,12],[196,3,196,12],[198,13,198,14],[198,15,198,24],[201,0,201,3],[198,0,198,2],[199,15,199,24],[201,23,201,24],[199,0,199,2],[201,4,201,6],[187,0,187,24],[185,13,185,15],[192,1,192,15],[192,16,192,27],[193,1,193,15],[193,16,193,27],[194,1,194,15],[194,16,194,27],[199,3,199,12],[185,23,185,24],[191,1,191,15],[191,16,191,27],[185,8,185,12],[204,0,204,27],[116,15,116,18],[116,21,116,24],[132,15,132,18],[132,21,132,24],[130,1,130,15],[172,0,172,27],[173,1,173,15],[173,16,173,27],[167,3,167,12],[166,0,166,2],[146,1,146,15],[146,16,146,27],[166,13,166,14],[164,13,164,14],[151,15,151,24],[150,13,150,14],[165,13,165,14],[149,21,149,24],[150,15,150,24],[137,4,137,6],[121,0,121,3],[121,4,121,6],[137,13,137,15],[90,25,90,27],[90,22,90,24],[134,15,134,24],[125,16,125,27],[127,1,127,15],[127,16,127,27],[128,1,128,15],[128,16,128,27],[129,1,129,15],[129,16,129,27],[132,25,132,27],[133,3,133,12],[132,3,132,12],[126,1,126,15],[126,16,126,27],[95,20,95,21],[102,0,102,2],[92,1,92,5],[101,13,101,14],[94,13,94,14],[92,13,92,14],[100,13,100,14],[101,3,101,12],[101,0,101,2],[83,1,83,5],[83,6,83,8],[135,3,135,12],[133,25,135,27],[133,13,133,14],[135,0,135,2],[91,25,91,27],[80,18,80,19],[80,20,80,21],[80,22,80,24],[80,25,80,27],[81,1,81,5],[81,6,81,8],[81,9,81,12],[81,13,81,14],[84,9,84,12],[84,20,84,21],[84,22,84,24],[84,18,84,19],[84,13,84,14],[83,9,83,12],[81,25,81,27],[82,25,82,27],[89,6,89,8],[98,0,98,27],[94,22,94,24],[93,6,93,8],[93,9,93,12],[92,22,92,24],[93,15,93,17],[100,21,100,24],[101,21,101,24],[101,15,101,19],[95,22,95,24],[93,18,93,19],[93,22,93,24],[93,20,93,21],[93,13,93,14],[92,18,92,19],[92,20,92,21],[52,6,52,10],[59,11,59,19],[51,6,51,10],[100,0,100,2],[100,3,100,12],[102,3,102,12],[100,15,100,18],[91,1,91,5],[93,1,93,5],[92,9,92,12],[91,6,91,8],[91,9,91,12],[91,13,91,14],[89,1,89,5],[76,1,76,5],[76,6,76,8],[76,9,76,12],[77,1,77,5],[77,6,77,8],[77,9,77,12],[77,13,77,14],[77,15,77,17],[77,18,77,19],[76,13,76,14],[62,0,62,25],[60,11,60,19],[66,7,66,12],[60,25,60,27],[66,25,66,27],[67,1,67,6],[67,7,67,12],[60,0,60,2],[67,20,67,22],[67,13,67,16],[67,17,67,19],[66,17,66,19],[91,22,91,24],[86,25,86,27],[76,25,76,27],[77,20,77,21],[77,22,77,24],[77,25,77,27],[78,6,78,8],[78,9,78,12],[78,13,78,14],[79,25,79,27],[79,18,79,19],[78,15,78,17],[78,25,78,27],[87,20,87,21],[87,22,87,24],[85,22,85,24],[88,25,88,27],[89,25,89,27],[79,20,79,21],[79,22,79,24],[82,15,82,17],[80,6,80,8],[80,9,80,12],[80,13,80,14],[7,0,7,8],[52,23,52,24],[58,23,58,24],[59,23,59,24],[8,0,8,8],[47,0,47,24],[90,1,90,5],[50,0,50,2],[51,3,51,5],[49,3,49,5],[90,6,90,8],[90,9,90,12],[90,13,90,14],[50,23,50,24],[49,11,49,19],[51,21,51,22],[48,23,48,24],[52,0,52,2],[59,0,59,2],[52,3,52,5],[54,0,54,5],[54,11,54,17],[58,3,58,5],[58,0,58,2],[59,25,59,27],[57,0,57,27],[55,11,55,17],[49,0,49,2],[58,21,58,22],[52,11,52,19],[6,6,6,20],[6,21,6,23],[24,0,24,6],[59,3,59,5],[20,9,20,15],[21,9,21,15],[18,0,18,6],[18,9,18,15],[20,0,20,6],[17,0,17,6],[17,9,17,15],[26,15,26,16],[23,0,23,6],[23,9,23,15],[55,6,55,10],[55,0,55,5],[48,6,48,10],[49,6,49,10],[48,25,48,27],[48,11,48,19],[48,21,48,22],[48,0,48,2],[52,21,52,22],[54,6,54,10],[58,11,58,19],[49,23,49,24],[50,3,50,5],[52,25,52,27],[54,25,54,27],[55,25,55,27],[58,25,58,27],[49,25,49,27],[50,25,50,27],[51,25,51,27],[50,21,50,22],[49,21,49,22],[51,23,51,24],[50,6,50,10],[50,11,50,19],[51,11,51,19],[51,0,51,2],[48,3,48,5],[7,9,7,26],[8,9,8,26],[12,0,12,27],[43,0,43,27],[14,0,14,27],[15,0,15,27],[17,18,17,27],[18,18,18,27],[20,18,20,27],[36,10,36,27],[31,21,31,27],[29,18,29,27],[26,18,26,27],[23,18,23,27],[34,21,34,22],[30,18,30,27],[25,0,25,27],[9,0,11,26],[39,0,41,27],[32,21,32,27],[26,12,26,13],[21,18,21,27],[24,18,24,27],[27,18,27,26],[74,20,74,21],[78,20,78,21],[78,22,78,24],[89,9,89,12],[89,13,89,14],[89,15,89,17],[74,18,74,19],[81,15,81,17],[81,18,81,19],[75,9,75,12],[83,13,83,14],[83,15,83,17],[83,18,83,19],[83,20,83,21],[83,22,83,24],[79,9,79,12],[79,13,79,14],[85,13,85,14],[78,18,78,19],[82,18,82,19],[82,20,82,21],[82,22,82,24],[79,15,79,17],[86,22,86,24],[72,20,72,22],[75,20,75,21],[85,20,85,21],[75,22,75,24],[81,20,81,21],[81,22,81,24],[87,1,87,5],[87,6,87,8],[87,9,87,12],[87,13,87,14],[87,15,87,17],[72,23,72,24],[82,9,82,12],[82,13,82,14],[79,1,79,5],[79,6,79,8],[75,15,75,17],[80,1,80,5],[76,15,76,17],[76,18,76,19],[76,20,76,21],[76,22,76,24],[87,18,87,19],[78,1,78,5],[103,15,103,24],[102,15,102,24],[100,25,100,27],[101,25,103,27],[83,25,83,27],[91,15,91,17],[91,18,91,19],[91,20,91,21],[102,13,102,14],[90,15,90,17],[90,18,90,19],[90,20,90,21],[89,18,89,19],[89,20,89,21],[89,22,89,24],[85,18,85,19],[88,15,88,17],[87,25,87,27],[86,20,86,21],[88,18,88,19],[88,20,88,21],[88,22,88,24],[85,25,85,27],[85,15,85,17],[80,15,80,17],[84,15,84,17],[84,1,84,5],[145,1,145,15],[145,16,145,27],[150,0,150,2],[139,0,139,24],[140,0,140,27],[133,15,133,19],[133,21,133,24],[137,23,137,24],[137,8,137,12],[135,15,135,24],[135,13,135,14],[134,13,134,14],[134,0,134,2],[133,0,133,2],[134,3,134,12],[103,0,103,2],[105,8,105,12],[103,3,103,12],[141,1,141,15],[141,16,141,27],[142,1,142,15],[142,16,142,27],[143,1,143,15],[143,16,143,27],[148,3,148,12],[148,13,148,14],[150,3,150,12],[103,13,103,14],[107,0,107,24],[116,0,116,2],[105,0,105,3],[121,8,121,12],[119,0,119,2],[119,13,119,14],[119,15,119,24],[110,1,110,15],[114,1,114,15],[114,16,114,27],[109,1,109,15],[109,16,109,27],[111,1,111,15],[110,16,110,27],[111,16,111,27],[112,1,112,15],[112,16,112,27],[113,1,113,15],[113,16,113,27],[105,13,105,15],[117,3,117,12],[105,23,105,24],[108,0,108,27],[118,0,118,2],[130,16,130,27],[132,0,132,2],[124,0,124,27],[118,13,118,14],[118,3,118,12],[116,3,116,12],[119,3,119,12],[121,13,121,15],[117,0,117,2],[116,13,116,14],[117,13,117,14],[121,23,121,24],[132,13,132,14],[123,0,123,24],[118,15,118,24],[125,1,125,15],[0,0,3,25],[34,0,35,12],[31,7,31,12],[32,0,32,5],[94,15,94,17],[94,20,94,21],[94,1,94,5],[94,9,94,12],[94,18,94,19],[74,25,74,27],[75,25,75,27],[84,25,84,27],[92,25,92,27],[93,25,93,27],[94,25,94,27],[73,0,73,27],[92,6,92,8],[92,15,92,17],[75,13,75,14],[75,18,75,19],[75,6,75,8],[84,6,84,8],[88,13,88,14],[4,0,4,25],[264,0,264,24],[256,0,256,12],[245,0,245,16],[245,18,245,22],[260,0,260,12],[94,6,94,8],[231,0,231,27],[232,0,232,27],[234,17,234,27],[183,0,183,2],[217,13,217,15],[116,25,116,27],[117,25,119,27],[183,3,183,12],[183,13,183,14],[227,0,227,24],[233,0,233,24],[235,0,235,24],[105,4,105,6],[137,0,137,3],[217,0,217,3],[217,4,217,6],[196,25,196,27],[197,25,199,27],[266,6,266,13],[258,0,258,12],[246,0,246,24],[266,0,266,4],[228,18,228,21],[262,0,262,27],[263,0,263,27],[256,14,256,27],[257,14,258,27],[259,14,260,27],[254,0,254,27],[243,0,243,27],[228,22,228,24],[238,19,238,23],[239,15,239,18],[239,19,239,23],[240,2,240,5],[266,17,266,19],[265,20,267,27],[238,6,238,13],[239,6,239,13],[240,6,240,13],[237,2,237,5],[238,2,238,5],[29,0,29,6],[29,9,29,15],[30,9,30,15],[24,9,24,16],[27,0,27,10],[27,12,27,13],[21,0,21,6],[27,15,27,16],[26,0,26,10],[34,13,34,17],[38,0,38,24],[31,0,31,5],[30,0,30,6],[32,7,32,12],[31,14,31,19],[32,14,32,19],[45,9,45,10],[45,11,45,13],[36,0,36,9],[44,0,44,27],[45,0,46,5],[46,6,46,10],[45,7,45,8],[46,11,46,13],[68,17,68,19],[66,13,66,16],[68,13,68,16],[66,1,66,6],[68,1,68,6],[68,25,68,27],[54,18,54,24],[55,18,55,24],[66,20,66,22],[59,21,59,22],[66,23,66,24],[60,23,60,24],[60,6,60,10],[59,6,59,10],[58,6,58,10],[68,7,68,12],[64,0,64,27],[60,21,60,22],[68,23,68,24],[68,20,68,22],[60,3,60,5],[67,23,67,24],[65,0,65,25],[67,25,67,27],[74,22,74,24],[82,1,82,5],[82,6,82,8],[85,1,85,5],[85,6,85,8],[85,9,85,12],[147,0,147,27],[88,1,88,5],[88,6,88,8],[88,9,88,12],[86,1,86,5],[86,6,86,8],[86,9,86,12],[86,13,86,14],[86,15,86,17],[86,18,86,19],[75,1,75,5],[74,1,74,5],[74,6,74,8],[74,9,74,12],[74,13,74,14],[74,15,74,17],[117,15,117,19],[117,21,117,24],[183,15,183,24],[169,13,169,15],[169,23,169,24],[180,13,180,14],[197,3,197,12],[169,0,169,3],[174,16,174,27],[175,1,175,15],[175,16,175,27],[176,1,176,15],[176,16,176,27],[171,0,171,24],[174,1,174,15],[189,1,189,15],[189,16,189,27],[190,1,190,15],[190,16,190,27],[180,0,180,2],[180,3,180,12],[179,0,179,27],[180,15,180,18],[161,16,161,27],[167,13,167,14],[177,1,177,15],[177,16,177,27],[178,1,178,15],[178,16,178,27],[188,0,188,27],[181,3,181,12],[198,3,198,12],[181,25,183,27],[182,13,182,14],[185,4,185,6],[185,0,185,3],[180,21,180,24],[180,25,180,27],[181,15,181,19],[181,21,181,24],[182,15,182,24],[181,13,181,14],[182,3,182,12],[181,0,181,2],[182,0,182,2],[169,4,169,6],[169,8,169,12],[158,1,158,15],[158,16,158,27],[167,0,167,2],[153,0,153,3],[167,15,167,24],[153,23,153,24],[164,0,164,2],[155,0,155,24],[153,8,153,12],[166,3,166,12],[166,15,166,24],[165,0,165,2],[163,0,163,27],[165,3,165,12],[164,3,164,12],[164,25,164,27],[165,25,167,27],[160,1,160,15],[164,15,164,18],[164,21,164,24],[159,1,159,15],[159,16,159,27],[160,16,160,27],[161,1,161,15],[247,18,247,22],[247,3,247,13],[247,24,247,27],[165,15,165,19],[153,4,153,6],[153,13,153,15],[148,25,148,27],[148,21,148,24],[148,0,148,2],[151,13,151,14],[151,3,151,12],[149,3,149,12],[149,13,149,14],[149,0,149,2],[151,0,151,2],[148,15,148,18],[149,25,151,27],[149,15,149,19],[162,1,162,15],[162,16,162,27],[165,21,165,24],[156,0,156,27],[157,1,157,15],[157,16,157,27]]}
["FORMATO DE HOJA DE VIDA - DECLARACIÓN JURADA"]
[]
[]
[]
["Estimado postulante, en conformidad con lo establecido en las Bases del concurso y con el fin de ser considerado en el proceso de selección, antes de iniciar el registro de su información, es indispensable que descargue la Política de Privacidad sobre el uso de sus Datos Personales y autorice el tratamiento de los mismos."]
[]
[null,null,null,null,null,null,"He leído la Política de Privacidad sobre el uso de Datos Personales de Osinergmin en el presente proceso de selección y autorizo el tratamiento de mis datos personales conforme lo establecido en el documento.",null,null,null,null,null,null,null,null,null,null,null,null,null,null,"Seleccione.."]
["PUESTO O CARGO AL QUE POSTULA"]
["NÚMERO DE PROCESO AL QUE POSTULA "]
["Formulo la presente Declaración Jurada, en virtud del Principio de Presunción de Veracidad previsto en el numeral 1.7 artículo IV de la Ley N° 27444, Ley del Procedimiento Administrativo General. El Organismo Supervisor de la Inversión en Energía y Minería - Osinergmin, considerará la información declarada, reservándose el derecho de llevar a cabo las verificaciones correspondientes; así como solicitar la acreditación de la misma. En caso de detectarse información omitida, falsa o inexacta  acepto expresamente que la entidad proceda a mi retiro automático, sea del proceso de selección  o de la entidad si se produjo vinculación, sin perjuicio de aplicarse las sanciones legales que correspondan. "]
[]
[]
["I. DATOS PERSONALES (De acuerdo con lo  registrado en su DNI)"]
[]
[]
["Apellidos y nombres (En mayúscula)"]
[]
[]
["Lugar de nacimiento",null,null,null,null,null,null,null,null,"Fecha de nacimiento (dd/mm/aaaa)",null,null,null,null,null,null,null,null,"Nacionalidad"]
[]
["Seleccione…",null,null,null,null,null,null,null,null,"Seleccione…",null,null,null,null,null,null,null,null,"Seleccione.."]
["Estado civil",null,null,null,null,null,null,null,null,"Género",null,null,null,null,null,null,null,null,"Documento de Identidad"]
[]
[]
["N° de Documento de Identidad",null,null,null,null,null,null,null,null,"Edad",null,null,null,null,null,null,null,null,"RUC *"]
["DOMICILIO ACTUAL"]
[]
["Dirección",null,null,null,null,null,null,null,null,null,null,null,"N°",null,null,"Dpto",null,null,"Referencia"]
[]
[]
["Distrito",null,null,null,null,null,null,null,null,"Provincia",null,null,null,null,null,null,null,null,"Departamento"]
[]
["Teléfono fijo ",null,null,null,null,null,null,"Celular ",null,null,null,null,null,null,"Correo electrónico personal",null,null,null,null,null,null,"Categoría y Númeo Brevete (De postular a puesto de chofer) *"]
[]
["Seleccione el medio por el que se informó de la Convocatoria:",null,null,null,null,null,null,null,null,null,null,null,null,"Seleccione…"]
[]
["Especificar ( en caso seleccione OTROS): "]
[]
["  * Opcional, de ser el caso que aplique."]
["II DECLARACIÓN DE CUMPLIMIENTO DE REQUISITOS MÍNIMOS: Es indispensable marque y/o registre el cumplimiento de requisitos. En caso no hacerlo, se considerará como incumplimiento"]
[]
[]
[]
["2.1 FORMACIÓN ACADÉMICA"]
[]
["Fecha de egreso de estudios Universitarios o Técnicos, según lo solicitado en la convocatoria (Indispensable para el conteo de experiencia)",null,null,null,null,null,"Día","Mes",null,"Año",null,"Número de Folio"]
[]
["Consignar el nivel formativo conforme lo solicitado en la convocatoria."]
["Tipo de formación",null,null,"Especialidad",null,null,"Situación (egresado, bachiller o titulado)",null,null,null,null,"Centro de estudios",null,null,null,null,null,null,null,null,"Fecha inicio de estudios ","Fecha término de estudios ",null,"Fecha de expedición de certificación (*)",null,"Número de Folio"]
["Universitaria",null,null,null,null,null,"Seleccione.."]
["Técnica básica    (1 a 2 años)",null,null,null,null,null,"Seleccione.."]
["Técnica superior (3 a 4 años)",null,null,null,null,null,"Seleccione.."]
["Secundaria",null,null,null,null,null,"Seleccione.."]
[]
["Información a consignar por postulantes profesionales Titulados y Colegiados",null,null,null,null,null," N° colegiatura",null,null,null,null,"Colegio Profesional",null,null,null,null,null,null,"Habilitación profesional vigente",null,null,null,null,null,null,"Número de Folio"]
[null,null,null,null,null,null,null,null,null,null,null,null,null,null,null,null,null,null,"Seleccione.."]
[]
["Consignar los estudios de post grado vinculados con el puesto al que postula (De contener un curso requerido por convocatoria dentro de la malla curricular, con la cantidad de horas solicitado, detallarlo en el numeral 2.2)."]
["Estudios de Post Grado",null,null,"Especialidad",null,null,"Situación (egresado o titulado)",null,null,null,null,"Centro de estudios",null,null,null,null,null,null,null,null,"Fecha inicio de estudios","Fecha término de estudios ",null,"Fecha de expedición de certificación (*)",null,"Número de Folio"]
["Doctorado",null,null,null,null,null,"Seleccione.."]
["Maestría",null,null,null,null,null,"Seleccione.."]
[]
["(*) Consignar la fecha de expedición del título, grado académico o certificado de estudios secundarios concluidos, según corresponda al nivel alcanzado y solicitado en el aviso de convocatoria. "]
[]
["2.2 CURSOS Y/O PROGRAMAS DE ESPECIALIZACIÓN"]
["Declarar únicamente aquellos vinculados con el puesto al que postula (De requerir ingresar una cantidad mayor, puede añadir celdas):"]
["N°","Centro de estudios",null,null,null,null,null,"Tipo de capacitación",null,null,null,null,null,"Nombre de la capacitación",null,null,null,"Fecha de inicio \n(dd/mm/aaaa)",null,null,"Fecha de término\n(dd/mm/aaaa)",null,null,"N° de Horas lectivas ",null,"Número de Folio"]
[1,null,null,null,null,null,null,"Seleccione.."]
[2,null,null,null,null,null,null,"Seleccione.."]
[3,null,null,null,null,null,null,"Seleccione.."]
[4,null,null,null,null,null,null,"Seleccione.."]
[5,null,null,null,null,null,null,"Seleccione.."]
[]
["2.3 EXPERIENCIA GENERAL (Se contará desde el egreso de la formación correspondiente en los casos que se requiera formación completa para más detalle revisar las bases del proceso)"]
["N°","Empresa y/o Institución",null,null,null,null,"Área",null,null,"Cargo desempeñado",null,null,null,"Remuneración mensual",null,"Motivo de retiro  ",null,null,"Fecha de inicio (dd/mm/aaaa)",null,"Fecha término \n(dd/mm/aaaa)",null,"Meses ",null,null,"Número de Folio"]
[1,null,null,null,null,null,null,null,null,null,null,null,null,null,null,null,null,null,null,null,null,null,{"$f":"DATEDIF(S76,U76,\"y\") & \" años \" & DATEDIF(S76,U76,\"ym\") & \" meses \" & DATEDIF(S76,U76,\"md\") & \" días\"","v":"0 años 0 meses 0 días"},null,null,null,null,null,null,null,null,null,null,null,{"$f":"DATEDIF(S76,U76,\"d\")","v":0}]
[2,null,null,null,null,null,null,null,null,null,null,null,null,null,null,null,null,null,null,null,null,null,"0 años 0 meses 0 días",null,null,null,null,null,null,null,null,null,null,null,{"$f":"DATEDIF(S77,U77,\"d\")","v":0}]
[3,null,null,null,null,null,null,null,null,null,null,null,null,null,null,null,null,null,null,null,null,null,"0 años 0 meses 0 días",null,null,null,null,null,null,null,null,null,null,null,0]
[4,null,null,null,null,null,null,null,null,null,null,null,null,null,null,null,null,null,null,null,null,null,"0 años 0 meses 0 días",null,null,null,null,null,null,null,null,null,null,null,0]
[5,null,null,null,null,null,null,null,null,null,null,null,null,null,null,null,null,null,null,null,null,null,"0 años 0 meses 0 días",null,null,null,null,null,null,null,null,null,null,null,0]
[6,null,null,null,null,null,null,null,null,null,null,null,null,null,null,null,null,null,null,null,null,null,"0 años 0 meses 0 días",null,null,null,null,null,null,null,null,null,null,null,0]
[7,null,null,null,null,null,null,null,null,null,null,null,null,null,null,null,null,null,null,null,null,null,"0 años 0 meses 0 días",null,null,null,null,null,null,null,null,null,null,null,0]
[8,null,null,null,null,null,null,null,null,null,null,null,null,null,null,null,null,null,null,null,null,null,"0 años 0 meses 0 días",null,null,null,null,null,null,null,null,null,null,null,0]
[9,null,null,null,null,null,null,null,null,null,null,null,null,null,null,null,null,null,null,null,null,null,"0 años 0 meses 0 días",null,null,null,null,null,null,null,null,null,null,null,0]
[10,null,null,null,null,null,null,null,null,null,null,null,null,null,null,null,null,null,null,null,null,null,"0 años 0 meses 0 días",null,null,null,null,null,null,null,null,null,null,null,{"$f":"DATEDIF(S85,U85,\"d\")","v":0}]
[11,null,null,null,null,null,null,null,null,null,null,null,null,null,null,null,null,null,null,null,null,null,{"$f":"DATEDIF(S86,U86,\"y\") & \" años \" & DATEDIF(S86,U86,\"ym\") & \" meses \" & DATEDIF(S86,U86,\"md\") & \" días\"","v":"0 años 0 meses 0 días"},null,null,null,null,null,null,null,null,null,null,null,0]
[12,null,null,null,null,null,null,null,null,null,null,null,null,null,null,null,null,null,null,null,null,null,"0 años 0 meses 0 días",null,null,null,null,null,null,null,null,null,null,null,0]
[13,null,null,null,null,null,null,null,null,null,null,null,null,null,null,null,null,null,null,null,null,null,"0 años 0 meses 0 días",null,null,null,null,null,null,null,null,null,null,null,0]
[14,null,null,null,null,null,null,null,null,null,null,null,null,null,null,null,null,null,null,null,null,null,"0 años 0 meses 0 días",null,null,null,null,null,null,null,null,null,null,null,0]
[15,null,null,null,null,null,null,null,null,null,null,null,null,null,null,null,null,null,null,null,null,null,"0 años 0 meses 0 días",null,null,null,null,null,null,null,null,null,null,null,0]
[16,null,null,null,null,null,null,null,null,null,null,null,null,null,null,null,null,null,null,null,null,null,"0 años 0 meses 0 días",null,null,null,null,null,null,null,null,null,null,null,0]
[17,null,null,null,null,null,null,null,null,null,null,null,null,null,null,null,null,null,null,null,null,null,"0 años 0 meses 0 días",null,null,null,null,null,null,null,null,null,null,null,0]
[18,null,null,null,null,null,null,null,null,null,null,null,null,null,null,null,null,null,null,null,null,null,"0 años 0 meses 0 días",null,null,null,null,null,null,null,null,null,null,null,0]
[19,null,null,null,null,null,null,null,null,null,null,null,null,null,null,null,null,null,null,null,null,null,"0 años 0 meses 0 días",null,null,null,null,null,null,null,null,null,null,null,0]
[20,null,null,null,null,null,null,null,null,null,null,null,null,null,null,null,null,null,null,null,null,null,"0 años 0 meses 0 días",null,null,null,null,null,null,null,null,null,null,null,0]
[null,null,null,null,null,null,null,null,null,null,null,null,null,null,null,null,null,null,null,null,"Total",null,{"$f":" INT(AI96/365.2)&\" años, \"&INT((AI96-INT(AI96/365.1)*365.2)/30.42)&\" mes y \"&INT(AI96-(INT(AI96/365.2)*365.2+INT((AI96-INT(AI96/365.2)*365.2)/30.42)*30.42))&\" días\"","v":"0 años, 0 mes y 0 días"},null,null,null,null,null,null,null,null,null,null,null,{"$f":"SUM(AI76:AI95)","v":0}]
[]
[]
["2.4  EXPERIENCIA ESPECÍFICA (Está relacionada directamente con el puesto.  La experiencia laboral requerida en este rubro corresponde al desempeño  de funciones en puestos que tienen  similitud con la vacante en concurso. Es indispensable y obligatorio detallar las funciones específicas desarrolladas, considerando que, a fin de validar la experiencia específica por cada cargo, al menos debe describir 2 funciones. Adicional a ello podrá seleccionar las funciones principales desarrolladas afines a las descritas a fin de identificar con que función se relaciona. De haber ocupado más de un puesto en la misma entidad, es obligatorio consignar cada uno de ellos. En caso se encuentre laborando actualmente, indicarlo en motivo de retiro y declarar como fecha de término el día, mes y año de envío de este formato al correo de postulación.)"]
[]
["1. Empresa \n         y/o \n     Institución",null,null,null,null,null,null,null,null,null,null,null,null,"Público /Privado",null,"Seleccione…",null,null,null,"Sector","Seleccione…","(especificar Otros)",null,null,null,"Número de Folio"]
["Unidad Orgánica/Área",null,null,null,null,null,null,null,null,null,null,null,null,"Puesto/Cargo",null,null,null,null,null,null,"Nivel de Puesto","Seleccione…"]
["Remuneración mensual fija (bruta)",null,null,null,null,null,null,null,null,null,null,null,null,"Motivo de retiro"]
["Reporte directo  (Nombre ,cargo y teléfono)",null,null,null,null,null,null,null,null,null,null,null,null,"N° de personas a cargo",null,"Seleccione…"]
[]
["Fecha de inicio (dd/mm/aaaa)",null,null,null,null,null,null,null,"Fecha de término  (dd/mm/aaaa)",null,null,null,null,null,null,null,null,"Tiempo laborado en meses",null,null,null,null,null,{"$f":"DATEDIF(E106,N106,\"y\") & \" años \" & DATEDIF(E106,N106,\"ym\") & \" meses \" & DATEDIF(E106,N106,\"md\") & \" días\"","v":"0 años 0 meses 0 días"},null,null,null,null,null,null,{"$f":"N106-E106","v":0},null,null,null,{"$f":"DATEDIF(E106,N106,\"d\")","v":0}]
[]
["Descripción de las funciones principales relacionadas al puesto:"]
["FUNCIONES:\n1. En la columna \"A\", debe detallar como mínimo dos (2) funciones especificas desarrolladas equivalentes a las requeridas en el perfil, caso contrario, la experiencia no será validada.\n2. Cada función descrita en la columna \"A\" debe ser asociada por equivalencia con una función del perfil. Para ello debe elegir una de ellas en la lista de desplegable de las celdas de la columna \"B\".\n3. En caso de repetir una misma función en la columna \"B\", sólo se considerará una de ellas.\n4. Es indispensable y obligatorio ejecutar lo indicado en el punto 1."]
[null,"A. DESCRIPCION DE LA FUNCION\nObligatorio describir dos (2) funciones como mínimo equivalentes a las requeridas en el perfil de puesto",null,null,null,null,null,null,null,null,null,null,null,null,null,null,"B. FUNCION DEL PERFIL DEL PUESTO\n(Elegir una función de lista si se ha hecho una descripción en la celda de la izquierda)"]
[1]
[2]
[3]
[4]
[5]
[]
["2. Empresa \n         y/o \n     Institución",null,null,null,null,null,null,null,null,null,null,null,null,"Público /Privado",null,"Seleccione…",null,null,null,"Sector","Minería","(especificar Otros)",null,null,null,"Número de Folio"]
["Unidad Orgánica/Área",null,null,null,null,null,null,null,null,null,null,null,null,"Puesto/Cargo",null,null,null,null,null,null,"Nivel de Puesto","Seleccione…"]
["Remuneración mensual fija (bruta)",null,null,null,null,null,null,null,null,null,null,null,null,"Motivo de retiro"]
["Reporte directo  (Nombre ,cargo y teléfono)",null,null,null,null,null,null,null,null,null,null,null,null,"N° de personas a cargo",null,"Seleccione…"]
[]
["Fecha de inicio (dd/mm/aaaa)",null,null,null,null,null,null,null,"Fecha de término  (dd/mm/aaaa)",null,null,null,null,null,null,null,null,"Tiempo laborado en meses",null," ",null,null,null,{"$f":"DATEDIF(E122,N122,\"y\") & \" años \" & DATEDIF(E122,N122,\"ym\") & \" meses \" & DATEDIF(E122,N122,\"md\") & \" días\"","v":"0 años 0 meses 0 días"},null,null,null,null,null,null,{"$f":"N122-E122","v":0},null,null,null,{"$f":"DATEDIF(E122,N122,\"d\")","v":0}]
[]
["Descripción de las funciones principales relacionadas al puesto:"]
["FUNCIONES:\n1. En la columna \"A\", debe detallar como mínimo dos (2) funciones especificas desarrolladas equivalentes a las requeridas en el perfil, caso contrario, la experiencia no será validada.\n2. Cada función descrita en la columna \"A\" debe ser asociada por equivalencia con una función del perfil. Para ello debe elegir una de ellas en la lista de desplegable de las celdas de la columna \"B\".\n3. En caso de repetir una misma función en la columna \"B\", sólo se considerará una de ellas.\n4. Es indispensable y obligatorio ejecutar lo indicado en el punto 1."]
[null,"A. DESCRIPCION DE LA FUNCION\nObligatorio describir dos (2) funciones como mínimo equivalentes a las requeridas en el perfil de puesto",null,null,null,null,null,null,null,null,null,null,null,null,null,null,"B. FUNCION DEL PERFIL DEL PUESTO\n(Elegir una función de lista si se ha hecho una descripción en la celda de la izquierda)"]
[1]
[2]
[3]
[4]
[5]
[]
["3. Empresa \n         y/o \n     Institución",null,null,null,null,null,null,null,null,null,null,null,null,"Público /Privado",null,"Seleccione…",null,null,null,"Sector","Seleccione…","(especificar Otros)",null,null,null,"Número de Folio"]
["Unidad Orgánica/Área",null,null,null,null,null,null,null,null,null,null,null,null,"Puesto/Cargo",null,null,null,null,null,null,"Nivel de Puesto","Seleccione…"]
["Remuneración mensual fija (bruta)",null,null,null,null,null,null,null,null,null,null,null,null,"Motivo de retiro"]
["Reporte directo  (Nombre ,cargo y teléfono)",null,null,null,null,null,null,null,null,null,null,null,null,"N° de personas a cargo",null,"Seleccione…"]
[]
["Fecha de inicio (dd/mm/aaaa)",null,null,null,null,null,null,null,"Fecha de término  (dd/mm/aaaa)",null,null,null,null,null,null,null,null,"Tiempo laborado en meses",null,null,null,null,null,{"$f":"DATEDIF(E138,N138,\"y\") & \" años \" & DATEDIF(E138,N138,\"ym\") & \" meses \" & DATEDIF(E138,N138,\"md\") & \" días\"","v":"0 años 0 meses 0 días"},null,null,null,null,null,null,{"$f":"N138-E138","v":0},null,null,null,{"$f":"DATEDIF(E138,N138,\"d\")","v":0}]
[]
["Descripción de las funciones principales relacionadas al puesto:"]
["FUNCIONES:\n1. En la columna \"A\", debe detallar como mínimo dos (2) funciones especificas desarrolladas equivalentes a las requeridas en el perfil, caso contrario, la experiencia no será validada.\n2. Cada función descrita en la columna \"A\" debe ser asociada por equivalencia con una función del perfil. Para ello debe elegir una de ellas en la lista de desplegable de las celdas de la columna \"B\".\n3. En caso de repetir una misma función en la columna \"B\", sólo se considerará una de ellas.\n4. Es indispensable y obligatorio ejecutar lo indicado en el punto 1."]
[null,"A. DESCRIPCION DE LA FUNCION\nObligatorio describir dos (2) funciones como mínimo equivalentes a las requeridas en el perfil de puesto",null,null,null,null,null,null,null,null,null,null,null,null,null,null,"B. FUNCION DEL PERFIL DEL PUESTO\n(Elegir una función de lista si se ha hecho una descripción en la celda de la izquierda)"]
[1]
[2]
[3]
[4]
[5]
[]
["4. Empresa \n         y/o \n     Institución",null,null,null,null,null,null,null,null,null,null,null,null,"Público /Privado",null,"Seleccione…",null,null,null,"Sector","Seleccione…","(especificar Otros)",null,null,null,"Número de Folio"]
["Unidad Orgánica/Área",null,null,null,null,null,null,null,null,null,null,null,null,"Puesto/Cargo",null,null,null,null,null,null,"Nivel de Puesto","Seleccione…"]
["Remuneración mensual fija (bruta)",null,null,null,null,null,null,null,null,null,null,null,null,"Motivo de retiro"]
["Reporte directo  (Nombre ,cargo y teléfono)",null,null,null,null,null,null,null,null,null,null,null,null,"N° de personas a cargo",null,"Seleccione…"]
[]
["Fecha de inicio (dd/mm/aaaa)",null,null,null,null,null,null,null,"Fecha de término  (dd/mm/aaaa)",null,null,null,null,null,null,null,null,"Tiempo laborado en meses",null,null,null,null,null,{"$f":"DATEDIF(E154,N154,\"y\") & \" años \" & DATEDIF(E154,N154,\"ym\") & \" meses \" & DATEDIF(E154,N154,\"md\") & \" días\"","v":"0 años 0 meses 0 días"},null,null,null,null,null,null,{"$f":"N154-E154","v":0},null,null,null,{"$f":"DATEDIF(E154,N154,\"d\")","v":0}]
[]
["Descripción de las funciones principales relacionadas al puesto:"]
["FUNCIONES:\n1. En la columna \"A\", debe detallar como mínimo dos (2) funciones especificas desarrolladas equivalentes a las requeridas en el perfil, caso contrario, la experiencia no será validada.\n2. Cada función descrita en la columna \"A\" debe ser asociada por equivalencia con una función del perfil. Para ello debe elegir una de ellas en la lista de desplegable de las celdas de la columna \"B\".\n3. En caso de repetir una misma función en la columna \"B\", sólo se considerará una de ellas.\n4. Es indispensable y obligatorio ejecutar lo indicado en el punto 1."]
[null,"A. DESCRIPCION DE LA FUNCION\nObligatorio describir dos (2) funciones como mínimo equivalentes a las requeridas en el perfil de puesto",null,null,null,null,null,null,null,null,null,null,null,null,null,null,"B. FUNCION DEL PERFIL DEL PUESTO\n(Elegir una función de lista si se ha hecho una descripción en la celda de la izquierda)"]
[1]
[2]
[3]
[4]
[5]
[]
["5. Empresa \n         y/o \n     Institución",null,null,null,null,null,null,null,null,null,null,null,null,"Público /Privado",null,"Seleccione…",null,null,null,"Sector","Seleccione…","(especificar Otros)",null,null,null,"Número de Folio"]
["Unidad Orgánica/Área",null,null,null,null,null,null,null,null,null,null,null,null,"Puesto/Cargo",null,null,null,null,null,null,"Nivel de Puesto","Seleccione…"]
["Remuneración mensual fija (bruta)",null,null,null,null,null,null,null,null,null,null,null,null,"Motivo de retiro"]
["Reporte directo  (Nombre ,cargo y teléfono)",null,null,null,null,null,null,null,null,null,null,null,null,"N° de personas a cargo",null,"Seleccione…"]
[]
["Fecha de inicio (dd/mm/aaaa)",null,null,null,null,null,null,null,"Fecha de término  (dd/mm/aaaa)",null,null,null,null,null,null,null,null,"Tiempo laborado en meses",null,null,null,null,null,{"$f":"DATEDIF(E170,N170,\"y\") & \" años \" & DATEDIF(E170,N170,\"ym\") & \" meses \" & DATEDIF(E170,N170,\"md\") & \" días\"","v":"0 años 0 meses 0 días"},null,null,null,null,null,null,{"$f":"N170-E170","v":0},null,null,null,{"$f":"DATEDIF(E170,N170,\"d\")","v":0}]
[]
["Descripción de las funciones principales relacionadas al puesto:"]
["FUNCIONES:\n1. En la columna \"A\", debe detallar como mínimo dos (2) funciones especificas desarrolladas equivalentes a las requeridas en el perfil, caso contrario, la experiencia no será validada.\n2. Cada función descrita en la columna \"A\" debe ser asociada por equivalencia con una función del perfil. Para ello debe elegir una de ellas en la lista de desplegable de las celdas de la columna \"B\".\n3. En caso de repetir una misma función en la columna \"B\", sólo se considerará una de ellas.\n4. Es indispensable y obligatorio ejecutar lo indicado en el punto 1."]
[null,"A. DESCRIPCION DE LA FUNCION\nObligatorio describir dos (2) funciones como mínimo equivalentes a las requeridas en el perfil de puesto",null,null,null,null,null,null,null,null,null,null,null,null,null,null,"B. FUNCION DEL PERFIL DEL PUESTO\n(Elegir una función de lista si se ha hecho una descripción en la celda de la izquierda)"]
[1]
[2]
[3]
[4]
[5]
[]
["6. Empresa \n         y/o \n     Institución",null,null,null,null,null,null,null,null,null,null,null,null,"Público /Privado",null,"Seleccione…",null,null,null,"Sector","Seleccione…","(especificar Otros)",null,null,null,"Número de Folio"]
["Unidad Orgánica/Área",null,null,null,null,null,null,null,null,null,null,null,null,"Puesto/Cargo",null,null,null,null,null,null,"Nivel de Puesto","Seleccione…"]
["Remuneración mensual fija (bruta)",null,null,null,null,null,null,null,null,null,null,null,null,"Motivo de retiro"]
["Reporte directo  (Nombre ,cargo y teléfono)",null,null,null,null,null,null,null,null,null,null,null,null,"N° de personas a cargo",null,"Seleccione…"]
[]
["Fecha de inicio (dd/mm/aaaa)",null,null,null,null,null,null,null,"Fecha de término  (dd/mm/aaaa)",null,null,null,null,null,null,null,null,"Tiempo laborado en meses",null,null,null,null,null,{"$f":"DATEDIF(E186,N186,\"y\") & \" años \" & DATEDIF(E186,N186,\"ym\") & \" meses \" & DATEDIF(E186,N186,\"md\") & \" días\"","v":"0 años 0 meses 0 días"},null,null,null,null,null,null,{"$f":"N186-E186","v":0},null,null,null,{"$f":"DATEDIF(E186,N186,\"d\")","v":0}]
[]
["Descripción de las funciones principales relacionadas al puesto:"]
["FUNCIONES:\n1. En la columna \"A\", debe detallar como mínimo dos (2) funciones especificas desarrolladas equivalentes a las requeridas en el perfil, caso contrario, la experiencia no será validada.\n2. Cada función descrita en la columna \"A\" debe ser asociada por equivalencia con una función del perfil. Para ello debe elegir una de ellas en la lista de desplegable de las celdas de la columna \"B\".\n3. En caso de repetir una misma función en la columna \"B\", sólo se considerará una de ellas.\n4. Es indispensable y obligatorio ejecutar lo indicado en el punto 1."]
[null,"A. DESCRIPCION DE LA FUNCION\nObligatorio describir dos (2) funciones como mínimo equivalentes a las requeridas en el perfil de puesto",null,null,null,null,null,null,null,null,null,null,null,null,null,null,"B. FUNCION DEL PERFIL DEL PUESTO\n(Elegir una función de lista si se ha hecho una descripción en la celda de la izquierda)"]
[1]
[2]
[3]
[4]
[5]
[]
["7. Empresa \n         y/o \n     Institución",null,null,null,null,null,null,null,null,null,null,null,null,"Público /Privado",null,"Seleccione…",null,null,null,"Sector","Seleccione…","(especificar Otros)",null,null,null,"Número de Folio"]
["Unidad Orgánica/Área",null,null,null,null,null,null,null,null,null,null,null,null,"Puesto/Cargo",null,null,null,null,null,null,"Nivel de Puesto","Seleccione…"]
["Remuneración mensual fija (bruta)",null,null,null,null,null,null,null,null,null,null,null,null,"Motivo de retiro"]
["Reporte directo  (Nombre ,cargo y teléfono)",null,null,null,null,null,null,null,null,null,null,null,null,"N° de personas a cargo",null,"Seleccione…"]
[]
["Fecha de inicio (dd/mm/aaaa)",null,null,null,null,null,null,null,"Fecha de término  (dd/mm/aaaa)",null,null,null,null,null,null,null,null,"Tiempo laborado en meses",null,null,null,null,null,{"$f":"DATEDIF(E202,N202,\"y\") & \" años \" & DATEDIF(E202,N202,\"ym\") & \" meses \" & DATEDIF(E202,N202,\"md\") & \" días\"","v":"0 años 0 meses 0 días"},null,null,null,null,null,null,{"$f":"N202-E202","v":0},null,null,null,{"$f":"DATEDIF(E202,N202,\"d\")","v":0}]
[]
["Descripción de las funciones principales relacionadas al puesto:"]
["FUNCIONES:\n1. En la columna \"A\", debe detallar como mínimo dos (2) funciones especificas desarrolladas equivalentes a las requeridas en el perfil, caso contrario, la experiencia no será validada.\n2. Cada función descrita en la columna \"A\" debe ser asociada por equivalencia con una función del perfil. Para ello debe elegir una de ellas en la lista de desplegable de las celdas de la columna \"B\".\n3. En caso de repetir una misma función en la columna \"B\", sólo se considerará una de ellas.\n4. Es indispensable y obligatorio ejecutar lo indicado en el punto 1."]
[null,"A. DESCRIPCION DE LA FUNCION\nObligatorio describir dos (2) funciones como mínimo equivalentes a las requeridas en el perfil de puesto",null,null,null,null,null,null,null,null,null,null,null,null,null,null,"B. FUNCION DEL PERFIL DEL PUESTO\n(Elegir una función de lista si se ha hecho una descripción en la celda de la izquierda)"]
[1]
[2]
[3]
[4]
[5]
[]
["8. Empresa \n         y/o \n     Institución",null,null,null,null,null,null,null,null,null,null,null,null,"Público /Privado",null,"Seleccione…",null,null,null,"Sector","Seleccione…","(especificar Otros)",null,null,null,"Número de Folio"]
["Unidad Orgánica/Área",null,null,null,null,null,null,null,null,null,null,null,null,"Puesto/Cargo",null,null,null,null,null,null,"Nivel de Puesto","Seleccione…"]
["Remuneración mensual fija (bruta)",null,null,null,null,null,null,null,null,null,null,null,null,"Motivo de retiro"]
["Reporte directo  (Nombre ,cargo y teléfono)",null,null,null,null,null,null,null,null,null,null,null,null,"N° de personas a cargo",null,"Seleccione…"]
[]
["Fecha de inicio (dd/mm/aaaa)",null,null,null,null,null,null,null,"Fecha de término  (dd/mm/aaaa)",null,null,null,null,null,null,null,null,"Tiempo laborado en meses",null,null,null,null,null,{"$f":"DATEDIF(E218,N218,\"y\") & \" años \" & DATEDIF(E218,N218,\"ym\") & \" meses \" & DATEDIF(E218,N218,\"md\") & \" días\"","v":"0 años 0 meses 0 días"},null,null,null,null,null,null,{"$f":"N218-E218","v":0},null,null,null,{"$f":"DATEDIF(E218,N218,\"d\")","v":0}]
[]
["Descripción de las funciones principales relacionadas al puesto:"]
["FUNCIONES:\n1. En la columna \"A\", debe detallar como mínimo dos (2) funciones especificas desarrolladas equivalentes a las requeridas en el perfil, caso contrario, la experiencia no será validada.\n2. Cada función descrita en la columna \"A\" debe ser asociada por equivalencia con una función del perfil. Para ello debe elegir una de ellas en la lista de desplegable de las celdas de la columna \"B\".\n3. En caso de repetir una misma función en la columna \"B\", sólo se considerará una de ellas.\n4. Es indispensable y obligatorio ejecutar lo indicado en el punto 1."]
[null,"A. DESCRIPCION DE LA FUNCION\nObligatorio describir dos (2) funciones como mínimo equivalentes a las requeridas en el perfil de puesto",null,null,null,null,null,null,null,null,null,null,null,null,null,null,"B. FUNCION DEL PERFIL DEL PUESTO\n(Elegir una función de lista si se ha hecho una descripción en la celda de la izquierda)"]
[1]
[2]
[3]
[4]
[5]
[]
[null,null,null,null,null,null,null,null,null,null,null,null,null,null,null,null,null,null,"TOTAL",null,null,null,{"$f":" INT(AI229/365.2)&\" años, \"&INT((AI229-INT(AI229/365.2)*365.2)/30.42)&\" mes y \"&INT(AI229-(INT(AI229/365.2)*365.2+INT((AI229-INT(AI229/365.2)*365.2)/30.42)*30.42))&\" días\"","v":"0 años, 0 mes y 0 días"},null,null,null,null,null,null,null,null,null,null,null,{"$f":"SUM(AI106:AI227)","v":0}]
[]
[]
["2.5 CONOCIMIENTOS"]
["Conocimientos técnicos para el puesto y/o cargo: (Es obligatorio declarar los conocimientos requeridos para el puesto, de acuerdo con lo indicado en el aviso de convocatoria o perfil. No requieren documentación sustentatoria. Utilice el recuadro correspondiente por cada uno de ellos)"]
[]
["Cuenta con todos los conocimientos técnicos para el puesto y/o cargo indicados en el perfil o la convocatoria  (Seleccione SI o NO): ",null,null,null,null,null,null,null,null,null,null,null,null,null,null,null,null,"Seleccione.."]
[]
[null,null,"Seleccione el nivel de ofimatica alcanzado",null,null,null,null,null,null,null,null,null,null,null,null,"Seleccione el nivel de idioma alcanzado"]
[null,null,"Ofimática",null,null,null,"Nivel",null,null,null,null,null,null,null,null,"Idioma",null,null,null,"Nivel"]
[null,null,"Word",null,null,null,"Seleccione…",null,null,null,null,null,null,null,"|","Inglés",null,null,null,"Seleccione…",null,null,null,null,null,null,"|"]
[null,null,"Power Point",null,null,null,"Seleccione…",null,null,null,null,null,null,null,null,"Quechua",null,null,null,"Seleccione…"]
[null,null,"Excel",null,null,null,"Seleccione…",null,null,null,null,null,null,null,null,"Otro idioma (detalle aquí)",null,null,null,"Seleccione…"]
[]
[]
["2.6. OTROS REQUISITOS  (Declarar conforme lo indicado en el perfil o convocatoria)"]
[]
["Disponibilidad para viajar al interior del pais (Siempre que lo requiera la convocatoria): ",null,null,null,null,null,null,null,null,null,null,null,null,null,null,null,null,null,"Seleccione.."]
[]
[null,null,null,"¿Cuenta con Certificación OSCE?",null,null,null,null,null,null,null,null,null,null,null,null,null,null,"Seleccione…",null,null,null,null,null,"N° ________________________"]
[]
["2.7. OTROS"]
[]
["¿Ha participado en el Curso de Extensión Universitario organizado por OSINERGMIN?",null,null,null,null,null,null,null,null,null,null,null,null,null,null,null,null,"Si",null,"Año"]
[null,null,null,null,null,null,null,null,null,null,null,null,null,null,null,null,null,"No"]
[]
["2.8. INFORMACIÓN ADICIONAL"]
[]
["En caso cuente con la condición de Discapacidad, indicar el tipo discapacidad y apoyo que requiere para las etapas prescenciales del proceso de selección. Ingrese a su vez el código de registro."]
[]
["En caso sea Licenciado de las Fuerzas Armadas, indicarlo, así como el nro. de documento."]
[]
["En caso tenga la condición de Deportista Calificado, indicar el detalle, de acuerdo con las Bases"]
[]
["DECLARO haber revisado las bases del concurso que se encuentra en la página WEB del Osinergmin y acepto las condiciones de postulación, cumpliendo con todos los requisitos solicitados y contando con Disponibilidad Inmediata.\n"]
["La Disponibilidad Inmediata implica que el postulante seleccionado,  no deberá tener impedimento para el inicio labores, ni mantener vínculo laboral con entidad del estado, conforme a lo establecido por D.S. Nº 065-2011-PCM (Art.4). En caso que a la suscripción de contrato mantenga vínculo con el estado, debe presentar la Carta de Renuncia aceptada por la entidad contratante o Licencia sin goce emitido por el Área de Recursos Humanos o quién haga sus veces."]
[]
[]
["Fecha de presentación:",null,null,null,null,null,null,null,null,null,null,null,null,null,null,null,null,"Firma (obligatorio, para dar validez al documento)"]

{"sheet":"Hoja1","index":2,"n_rows":9,"n_cols":19,"rows_kept":9,"cut":false,"hidden":true,"merged":[]}
["CAP_005_2024","CAP_006_2024","CAS_053_2024","CAS_054_2024","CAS_055_2024","CAS_056_2024","CAS_057_2024","CAS_058_2024","CAS_059_2024","CAS_060_2024","CAS_061_2024","CAS_062_2024","CAS_063_2024","CAS_064_2024","CAS_065_2024","CAS_066_2024","CAS_067_2024","CAS_068_2024","CAS_069_2024"]
["1. Elaborar informes técnicos que involucren cálculos y otros tipos de operaciones que correspondan a la regulación de la tarifa en generación y transmisión eléctrica, para su aprobación según corresponda.","1. Planificar y coordinar la ejecución de los programas de acciones de mantenimiento preventivos y correctivos que se encuentran dentro y fuera del plan de mantenimiento con las áreas usuarias y de soporte, contratistas y personal de servicios generales, a fin de atender las necesidades generadas.","1. Brindar soporte en la supervisión del funcionamiento y la gestión de los subsistemas administrativos de recursos humanos de acuerdo a la normativa vigente y según los planes establecidos por el órgano.","1. Administrar el flujo documental (recepción y notificación) del sistema de trámite documentario de la entidad para que los usuarios puedan disponer de los documentos según su tramitación y actuaciones según corresponda.","1. Gestionar la atención de las solicitudes de acceso a la información pública fin de que se atiendan de acuerdo a los plazos establecidos y siguiendo los procedimientos internos.","1. Realizar las actividades correspondientes a los procesos técnicos archivísticos de organización, descripción y selección documental, a fin de cumplir con la normativa vigente en la materia.","1. Ejecutar las actividades de fiscalización de la distribución y comercialización de hidrocarburos, así como de la fiscalización de los vehículos de transporte terrestre internacional en fronteras, a fin de contribuir con el cumplimiento del plan operativo de fiscalización y el marco normativo vigente.","1. Ejecutar las actividades de fiscalización de la distribución y comercialización de hidrocarburos, así como de la fiscalización de los vehículos de transporte terrestre internacional en fronteras, a fin de contribuir con el cumplimiento del plan operativo de fiscalización y el marco normativo vigente.","1. Elaborar y/o revisar proyectos de resolución, informes de opinión legal u otros documentos relacionados a la fiscalización, a fin de brindar cumplimiento a la normativa vigente.","1. Elaborar y/o revisar proyectos de resolución, informes de opinión legal u otros documentos relacionados a la fiscalización, a fin de brindar cumplimiento a la normativa vigente.","1. Efectuar el registro oportuno de los compromisos y obligaciones de pago, garantizando la fidelidad documentaria de cada transacción, en el sistema integrado de gestión administrativa y en el Sistema de Administración Financiera y mantener actualizado el control de pagos por contratos, obteniendo indicadores de ejecución periódica.","1. Definir y proponer una arquitectura de datos integrada con la finalidad de dar soporte a los requerimientos de gobernanza de datos y necesidades de las áreas de la entidad.","1. Gestionar la elaboración y tendencias del mercado referentes a la demanda, proyecciones y logística de combustibles líquidos y GLP a fin de contribuir en la comercialización de los combustibles líquidos u otros productos derivados de los hidrocarburos y GLP.","1. Brindar información que facilite el seguimiento y control del programa de fiscalización de las actividades correspondientes al sector hidrocarburos, a fin de cumplir con los objetivos de la unidad orgánica.","1. Proponer y elaborar reportes de indicadores o información asociada a la gestión de solicitudes de Registro de Hidrocarburos y acciones de fiscalización de la oficina regional, así como participar en la implementación y/o ejecución de planes de mejora en las actividades de fiscalización.","1. Gestionar, coordinar, proponer y evaluar las actividades de orden técnico y regulatorio relacionadas a los procesos del cálculo de precios de referencia y fijación de la banda de precios de combustibles derivados del petróleo a fin de dar cumplimiento a la normativa vigente.","1. Ejecutar y controlar las acciones de atención al ciudadano conforme a los procedimientos del sistema integrado de gestión y las políticas que establezca su área, en coordinación con la Oficina de Comunicaciones.","1. Elaborar y revisar informes de sustento técnico económico de las propuestas normativas de la División, velando por el cumplimiento de las recomendaciones del Análisis del Impacto Regulatorio (RIA), con el fin de incrementar la efectividad de la fiscalización de las actividades del gas natural.","1. Preparar, revisar y/o visar resoluciones e informes legales en el marco de la tramitación de procedimientos administrativos sancionadores o de evaluación previa, derivados de los procesos y actividades de supervisión en energía, a fin de cumplir con el plan operativo establecido."]
["2. Participar en la elaboración de las propuestas sobre precios de generación y transmisión eléctrica, a fin de brindar soporte a la División.","2. Gestionar y supervisar los procesos de implementación, remodelación y acondicionamiento de oficinas y locales a nivel nacional, bajo los estándares de calidad, seguridad, medio ambiente e identidad institucional de Osinergmin.","2. Participar en el diseño e implementación de herramientas de gestión de los subsistemas de recursos humanos con el objetivo de contribuir con la articulación de los mismos según necesidades institucionales.","2. Coordinar y monitorear el funcionamiento de la Ventanilla Virtual de Osinergmin, realizando las acciones necesarias para garantizar su operatividad.","2. Elaborar los informes requeridos relacionados a acceso a la información pública y otras solicitados, para el cumplimiento de las obligaciones legales en materia de acceso a la información pública.","2. Verificar y actualizar los instrumentos descriptivos del Archivo Central, con la finalidad de mantener actualizada la información.","2. Coordinar y gestionar fiscalizaciones/inspecciones técnicas en atención a solicitudes, consultas o reclamos de los ciudadanos o autoridades de acuerdo al proceso de fiscalización correspondiente a la Oficina Regional, respecto a las actividades de los hidrocarburos.","2. Coordinar y gestionar fiscalizaciones/inspecciones técnicas en atención a solicitudes, consultas o reclamos de los ciudadanos o autoridades de acuerdo al proceso de fiscalización correspondiente a la Oficina Regional, respecto a las actividades de los hidrocarburos.","2. Elaborar y/o revisar proyectos de resolución, informes de opinión legal u otros documentos relacionados a los trámites del registro de hidrocarburos, procedimientos de medidas administrativas y procedimientos administrativos sancionadores, a fin de cumplir con la normativa vigente.","2. Elaborar y/o revisar proyectos de resolución, informes de opinión legal u otros documentos relacionados a los trámites del registro de hidrocarburos, procedimientos de medidas administrativas y procedimientos administrativos sancionadores, a fin de cumplir con la normativa vigente.","2. Efectuar el control y seguimiento de los expedientes remitidos para su pago centralizado hasta el abono en cuenta de los proveedores.","2. Realizar el análisis de la capa de datos de las diversas aplicaciones de la entidad, estableciendo acciones de integración y automatización con la finalidad de verificar que el nivel de digitalización de los procesos esté acorde a las expectativas y objetivos planteados por las áreas de la entidad.","2. Gestionar los requerimientos de información correspondientes a combustibles líquidos, GLP, referidos a la demanda, logística y precios para el control de los mismos.","2. Elaborar oficios, manuales, informes técnicos, proyectos normativos y documentos desarrollados en el proceso de fiscalización preoperativa, operativa y especial (denuncias, emergencias, entre otros), o por pedidos especiales de autoridades y público en general, conforme a las responsabilidades de fiscalización en hidrocarburos.","2. Elaborar los reportes y notas de prensa de las acciones de fiscalización que realiza la oficina regional.","2. Elaborar propuestas de informes técnicos relacionados a los aspectos metodológicos para la estructuración y el cálculo de los precios de paridad de importación y/o exportación de los combustibles, costos de los componentes logísticos u otros según sean requeridos, con el fin de cumplir con la normativa vigente.","2. Gestionar y coordinar la administración de los documentos recibidos y emitidos por las Oficinas Regionales a fin de mantener el adecuado control y oportuno uso de la información.","2. Elaborar y revisar informes de cálculos de multa aplicable a empresas supervisadas, por incumplimiento de normas, a fin de incrementar la efectividad de la supervisión de las actividades del gas natural.","2. Gestionar el proceso administrativo sancionador, en el ámbito de su competencia, y registrar la información de los procedimientos en los aplicativos informáticos de la institución, a fin de tener un control del proceso."]
["3. Realizar las labores de supervisión de la programación de la operación que efectúa el Comité de Operación Económica del Sistema (COES), así como otras que se le asignen, a fin de cumplir con los procedimientos institucionales.","3. Programar y coordinar la contratación del suministro de combustible para abastecer a la flota vehicular de la institución.","3. Ejecutar y/o realizar seguimiento a actividades operativas y de gestión relacionadas a los sistemas administrativos del estado peruano, en función a los encargos encomendados por la gerencia del órgano, así como a las acciones planificadas por la misma para lograr los objetivos operativos y presupuestales del área.","3. Gestionar los accesos al sistema de trámite documentario, de acuerdo a los roles asignados y la política de seguridad de la información de la institución, a fin de resguardar la información de la entidad.","3. Realizar el seguimiento de las solicitudes de acceso a la información pública y revisar el contenido de la información a ser remitida para asegurar que se cumpla con la normativa relacionada.","3. Desarrollar y ejecutar el proceso técnico de servicio archivístico, atendiendo en el plazo establecido los requerimientos de los usuarios internos y externos.","3. Supervisar el cumplimiento de los programas, lineamientos técnicos y procedimientos establecidos por Osinergmin con la finalidad de velar por el cumplimiento de la normatividad en las actividades de fiscalización y/o en la prestación del servicio en las actividades de hidrocarburos.","3. Supervisar el cumplimiento de los programas, lineamientos técnicos y procedimientos establecidos por Osinergmin con la finalidad de velar por el cumplimiento de la normatividad en las actividades de fiscalización y/o en la prestación del servicio en las actividades de hidrocarburos.","3. Brindar orientación legal a los especialistas técnicos para la elaboración de sus informes y documentación, a fin de asegurar el debido proceso de supervisión de las actividades de distribución y comercialización de hidrocarburos.","3. Brindar orientación legal a los especialistas técnicos para la elaboración de sus informes y documentación, a fin de asegurar el debido proceso de supervisión de las actividades de distribución y comercialización de hidrocarburos.","3. Verificar que los expedientes y reembolsos de pagos, estén respaldados por documentos que sustenten el gasto de acuerdo al procedimiento vigente y en materia de legalidad y racionalidad del gasto.","3. Brindar apoyo en el proceso del ciclo de vida de software a fin de aplicar principios de reutilización enfocado en un modelo de datos institucional.","3. Ejecutar los proyectos asignados en el ámbito de la comercialización de los hidrocarburos líquidos y GLP con el propósito de mejorar e implementar los procesos de fiscalización de la división.","3. Brindar el soporte técnico, ejecutar la capacitación al personal de las Oficinas Regionales sobre los cambios de procesos de fiscalización de las actividades del sector hidrocarburos y realizar visitas de fiscalización de segundo nivel a las oficinas regionales para verificar el cumplimiento en la aplicación de guías, manuales de fiscalización y lineamientos con la finalidad de uniformizar los criterios de actuación.","3. Consolidar y registrar la información para el Reporte Semanal de actividades relevantes de la oficina regional, solicitado por la División de Supervision Regional.","3. Brindar opinión técnica en la elaboración de propuestas normativas e iniciativas, con el objetivo de proponer mejoras al marco regulatorio del sub sector hidrocarburos líquidos.","3. Gestionar las comunicaciones formales de la Oficina Regional con los diferentes medios de comunicación.","3. laborar y revisar reportes e indicadores de las actividades de supervisión, orientados a mejorar la efectividad de los procesos, procedimientos e instructivos de la División, a fin de proponer acciones de mejora que coadyuven a elaborar los informes de determinación de sanción.","3. Brindar orientación a los especialistas técnicos para la elaboración de sus informes y documentación, a fin de proveer el sustento legal respectivo."]
["4. Analizar los proyectos de normas, casos y otra documentación que se solicite, a fin de elaborar informes técnico - económicos; así como también proponer mejoras al marco regulatorio y a la estructura del sector, para el desarrollo y beneficio del mercado eléctrico.","4. Monitorear los trabajos que realizan los contratistas, a fin de detectar los incumplimientos de los servicios contratados y realizar medidas correctivas.","4. Consolidar los indicadores de gestión de la gerencia, y mantenerlos actualizados con el objetivo de contar con la información disponible para la respectiva toma de decisiones.","4. Realizar configuraciones (creación, actualización, anulación, entre otros) en el sistema tramite documentario para dar respuesta a las atenciones de solicitudes efectuadas por las diferentes áreas de la institución.","4. Brindar asistencia técnica a los encargados de proporcionar información pública y otros colaboradores relacionados al proceso de atención, a fin de orientar en la materia y los plazos de atención según la normativa vigente.","4. Brindar asistencia técnica a los encargados de los archivos periféricos y de gestión, a fin de orientar la aplicación de los procedimientos técnicos archivísticos de organización, descripción, transferencia y conservación de documentos.","4. Elaborar y proponer el plan regional de fiscalización de las actividades del sub sector hidrocarburos correspondientes a la Oficina Regional con la finalidad de velar por el cumplimiento de la normatividad del sub sector.","4. Elaborar y proponer el plan regional de fiscalización de las actividades del sub sector hidrocarburos correspondientes a la Oficina Regional con la finalidad de velar por el cumplimiento de la normatividad del sub sector.","4. Mantener actualizado el registro y estado situacional de las fiscalizaciones, los procedimientos administrativos sancionadores y medidas administrativas tramitadas por la Oficina Regional, a fin de contar con información que permita monitorear el cumplimiento de las metas procesales.","4. Mantener actualizado el registro y estado situacional de las fiscalizaciones, los procedimientos administrativos sancionadores y medidas administrativas tramitadas por la Oficina Regional, a fin de contar con información que permita monitorear el cumplimiento de las metas procesales.","4. Emitir las conformidades de servicio de las obligaciones y garantizar el flujo documentario en el sistema de gestión documental.","4. Definir y ejecutar medidas de control, acorde al modelo de arquitectura de datos, propiciando su integración y evitando la redundancia de datos a fin de que la información genere valor para entidad.","4. Supervisar la elaboración de los informes situacionales de gestión e informes específicos que le sean solicitados para dar conformidad a los mismos.","4. Participar en los comités técnicos y/o foros especializados dentro del ámbito de su competencia de la división, a fin de difundir los procedimientos de supervisión de las actividades de la Institución.","4. Consolidar y reportar de forma mensual las acciones del Plan Operativo Anual, en coordinación con los Especialistas Regionales.","4. Realizar el seguimiento al desarrollo de los estudios técnicos que requiera la unidad durante los procesos regulatorios para la toma de decisiones.","4. Organizar y desarrollar actividades de difusión, orientación y/o comunicación para los grupos de interés, con el fin de fortalecer la imagen de la Institución en la región.","4. Analizar los aspectos regulatorios de las actividades de supervisión del gas natural a fin de actualizar y mejorar los procedimientos aplicables a las actividades de supervisión de la División.","4. Mantener actualizado el registro y estado situacional de los procedimientos administrativos sancionadores y medidas administrativas tramitadas por la Oficina Regional a fin de contar con información que permita monitorear el cumplimiento de las metas procesales."]
["5. Elaborar los términos de referencia de los estudios técnicos, asesorías y servicios que se requiera contratar para las actividades de regulación tarifaria de generación y transmisión eléctrica.","5. Elaborar indicadores y registros del proceso de Servicios Generales, a fin de brindar información para la toma de decisiones de la jefatura.","5. Brindar apoyo en la atención a los requerimientos de información solicitados a la gerencia, para así emitir respuesta dentro de los plazos establecidos.","5. Absolver consultas de los usuarios sobre el sistema de trámite documental, ventanilla virtual de la entidad u otros, con relación al uso desde sus diferentes módulos a fin de orientar al usuario en el manejo de estos.","5. Realizar análisis y evaluaciones periódicas de los procesos y procedimientos internos relacionados con el acceso a la información pública, a fin de proponer mejoras y actualizaciones en caso de ser necesario.","5. Brindar pautas a los encargados de los archivos y otros colaboradores relacionados al proceso archivístico, a fin de orientar en la materia y los plazos de atención según la normativa vigente.","5. Realizar actas e informes técnicos de inspecciones realizadas, de investigaciones y/o análisis de actividades u ocurrencias que estén relacionadas a las actividades de los hidrocarburos, así como a la fiscalización de los vehículos de transporte terrestre internacional en fronteras.","5. Realizar actas e informes técnicos de inspecciones realizadas, de investigaciones y/o análisis de actividades u ocurrencias que estén relacionadas a las actividades de los hidrocarburos, así como a la fiscalización de los vehículos de transporte terrestre internacional en fronteras.","5. Apoyar en la atención de consultas legales efectuadas por los Administrados, para la atención dentro de los plazos y la normativa aplicable.","5. Apoyar en la atención de consultas legales efectuadas por los Administrados, para la atención dentro de los plazos y la normativa aplicable.","5. Mantener actualizado los registros y expedientes de retenciones, transferencias, cartas de fianza, reembolsos y otros relacionados a la gestión contable-financiera.","5. Atender requerimientos relacionados a la extracción, análisis y generación de información a través de reportes y tableros a fin de brindar soporte al proceso de toma de decisiones de la entidad.","5. Atender consultas en el ámbito comercialización de los combustibles líquidos u otros productos derivados de los hidrocarburos y GLP, así como las solicitudes de acceso a la información pública, a fin de brindar la atención dentro de los plazos establecidos","5. Monitorear y controlar los procedimientos administrativos sancionadores (PAS), los informes técnicos de sanción y cálculo de multas por los incumplimientos a las normas por parte de las empresas supervisadas en su sector y/o ámbito de acción.","5. Consolidar y reportar las acciones del Plan Operativo Multianual, en coordinación con los Especialistas Regionales.","5. Realizar actividades técnicas, operativas y/o administrativas relacionadas a los procesos de gestión de precios de referencia y banda de precios de combustibles derivados del petróleo, para contribuir con el logro de los objetivos de la gerencia.","5. Elaborar periódicamente informes e indicadores de gestión, así como otros documentos requeridos por el Jefe de la Oficina Regional.","5. Preparar informes, presentaciones, estudios analíticos y documentos sobre los aspectos regulatorios y/o económicos del sector energía a través del análisis del comportamiento del mercado nacional e internacional, a fin de contribuir con el desarrollo del marco regulatorio.","5. Absolver consultas legales efectuadas por los distintos grupos de interés y dar respuesta a las solicitudes de acceso a la información pública referentes a aspectos legales, a fin de atender a los ciudadanos."]
[null,"6. Apoyar en las actividades de SGS-SGA, sobre los servicios gestionados para trabajos de mantenimiento de infraestructura, implementaciones, remodelaciones, acondicionamientos de oficinas y servicios que correspondan la aplicación de las políticas de SGS-SGA establecidas por la institución.","6. Evaluar la documentación remitida a la gerencia para apoyar en su tratamiento, así como brindar soporte en la atención de las consultas de carácter administrativo que se le deriven relacionados a los sistemas administrativos.","6. Elaborar reportes estadísticos e indicadores de gestión relacionados a la recepción de trámite documental y a las de notificaciones efectuadas por la entidad, con el objetivo de contar con información actualizada y disponible para la toma de decisiones.","6. Contribuir en el diseño de reportes y mejoras de los aplicativos informáticos utilizados para el registro y administración de solicitudes de acceso a la información pública de la entidad.","6. Coordinar con el servicio de custodia de archivo para atender en el plazo establecido los pedidos de documentos efectuados por las áreas usuarias.","6. Elaborar los informes de valorización de los servicios de supervisión, cumplimiento de los servicios u otros relacionados a la gestión mensual de las actividades de fiscalización y denuncias del sub sector hidrocarburos, correspondientes a la región, con la finalidad de identificar y gestionar las acciones que correspondan.","6. Elaborar los informes de valorización de los servicios de supervisión, cumplimiento de los servicios u otros relacionados a la gestión mensual de las actividades de fiscalización y denuncias del sub sector hidrocarburos, correspondientes a la región, con la finalidad de identificar y gestionar las acciones que correspondan.","6. Participar en diligencias de supervisión, en los casos que se requiera, a fin de verificar la actuación de la Administración Pública.","6. Participar en diligencias de supervisión, en los casos que se requiera, a fin de verificar la actuación de la Administración Pública.","6. Llevar un control de las cartas fianza y garantías de los contratos y valores en general.","6. Realizar el análisis de indicadores y reportes de gestión con la finalidad de identificar entidades, patrones y atributos comunes relacionadas a datos e incorporar mejoras al modelo de datos institucional.","6. Participar en las modificaciones de los procesos, normas técnicas y legales que rigen las actividades de hidrocarburos líquidos, u otros productos derivados de los hidrocarburos y GLP, con el propósito de emitir opinión técnica para la mejora o futura implementación.","6. Monitorear y gestionar la plataforma de soluciones tecnológicas, PRICE ,GPS, entre otros brindando el soporte para la Fiscalización de las labores del Sector Hidrocarburos.","6.  Mantener actualizado los sistemas informáticos del Registro de Hidrocarburos en coordinación con los Especialistas Regionales en Hidrocarburos.","6. Coordinar y participar en la difusión de las acciones que se efectúan para dar a conocer las acciones regulatorias y el rol de la institución en el mercado de los hidrocarburos líquidos (agentes y consumidores).",null,"6. Participar en la elaboración de los informes de opinión técnica solicitados a la Gerencia sobre procesos de promoción de la inversión privada, asociaciones público-privadas en las actividades del subsector de gas natural que sean competencia de la División, de conformidad con la normativa vigente y los lineamientos que establezca el Consejo Directivo, a fin de proponer mejoras de los procesos de supervisión y fiscalización.","6. Brindar soporte legal en la elaboración y revisión de las propuestas normativas que presente la Oficina a la División a fin de estandarizar los criterios legales."]
[null,null,null,"7. Elaborar informes sobre el estado situacional de los sistemas de gestión documental, así como elaborar documentos de gestión del área e instructivos de uso del sistema, para contribuir en la operatividad de la gestión documental de la entidad e identificar oportunidades de mejora.","7. Contribuir con la ejecución de las actividades de los diferentes procesos relacionados a la gestión documentaria y archivo, según necesidades institucionales.","7. Absolver consultas y emitir informes relacionados a la gestión archivística, con la finalidad de contribuir a la gestión de la unidad.","7. Capacitar a los agentes e interesados respecto al funcionamiento del sub sector hidrocarburos y las actividades de supervisión de Osinergmin, a fin de sensibilizar y brindar información objetiva sobre las funciones de la entidad.","7. Capacitar a los agentes e interesados respecto al funcionamiento del sub sector hidrocarburos y las actividades de supervisión de Osinergmin, a fin de sensibilizar y brindar información objetiva sobre las funciones de la entidad.","7. Cumplir los procedimientos de supervisión y lineamientos internos establecidos por la División de Supervisión Regional, a fin de asegurar una actuación uniforme en las actividades de supervisión, fiscalización y sanción.","7. Cumplir los procedimientos de supervisión y lineamientos internos establecidos por la División de Supervisión Regional, a fin de asegurar una actuación uniforme en las actividades de supervisión, fiscalización y sanción.",null,"7. Ejecutar acciones de preparación de los datos para el análisis (recopilación, muestreo, limpieza, clasificación, entre otros) con la finalidad de identificar oportunidades de mejora en la gestión de estructuras de datos, en conjunto con los equipos de trabajo de la gerencia.",null,null,null,null,null,null,"7. Participar en diligencias y operativos de supervisión o de ejecución de sanciones para verificarla legalidad de actuación administrativa."]
[null,null,null,"8. Contribuir con la ejecución de las actividades de los diferentes procesos relacionados a la gestión documentaria y archivo, según necesidades institucionales",null,"8. Contribuir en la supervisión de los servicios de archivo y digitalización con el objetivo de que se efectúen dentro de los parámetros establecidos.","8. Identificar y formular proyectos de mejora con la finalidad de contribuir con el oportuno desarrollo de las actividades de fiscalización del sub sector hidrocarburos.","8. Identificar y formular proyectos de mejora con la finalidad de contribuir con el oportuno desarrollo de las actividades de fiscalización del sub sector hidrocarburos.",null,null,null,"8. Realizar actividades de investigación y puesta en marcha de pruebas de concepto relacionadas a analítica y ciencia de datos con la finalidad de digitalizar los procesos de la entidad."]

{"sheet":"Calculadora de Tiempo","index":3,"n_rows":20,"n_cols":9,"rows_kept":20,"cut":false,"hidden":true,"merged":[[2,3,2,4],[2,5,2,6],[19,1,19,2]]}
[null,"Experiencia Declarada: "]
[]
[null,null,null,"Exp. General",null," Exp. Específica"]
["N°","F. INICIO","F. FIN","Tiempo en días ","Tiempo Exp. General","Tiempo en días ","Tiempo Exp. Específica","Puesto","Empresa"]
[1,{"$f":"'Formato de Hoja de Vida'!E106","v":"00:00:00"},{"$f":"'Formato de Hoja de Vida'!N106","v":"00:00:00"},{"$f":"+ DATEDIF(B5,C5,\"d\")","v":0},{"$f":"+DATEDIF(B5,C5,\"y\") & \" años \" & DATEDIF(B5,C5,\"ym\") & \" meses \" & DATEDIF(B5,C5,\"md\") & \" días\"","v":"0 años 0 meses 0 días"},null,null,{"$f":"'Formato de Hoja de Vida'!P102","v":0},{"$f":"'Formato de Hoja de Vida'!D101","v":0}]
[2,{"$f":"'Formato de Hoja de Vida'!E122","v":"00:00:00"},{"$f":"'Formato de Hoja de Vida'!N122","v":"00:00:00"},0,{"$f":"+DATEDIF(B6,C6,\"y\") & \" años \" & DATEDIF(B6,C6,\"ym\") & \" meses \" & DATEDIF(B6,C6,\"md\") & \" días\"","v":"0 años 0 meses 0 días"},null,null,{"$f":"'Formato de Hoja de Vida'!P118","v":0},{"$f":"'Formato de Hoja de Vida'!D117","v":0}]
[3,{"$f":"'Formato de Hoja de Vida'!E138","v":"00:00:00"},{"$f":"'Formato de Hoja de Vida'!N138","v":"00:00:00"},{"$f":"+ DATEDIF(B7,C7,\"d\")","v":0},"0 años 0 meses 0 días",null,null,{"$f":"'Formato de Hoja de Vida'!P134","v":0},{"$f":"'Formato de Hoja de Vida'!#REF!","v":{"$error":"#REF!"}}]
[4,{"$f":"'Formato de Hoja de Vida'!E154","v":"00:00:00"},{"$f":"'Formato de Hoja de Vida'!N154","v":"00:00:00"},0,"0 años 0 meses 0 días",null,null,{"$f":"'Formato de Hoja de Vida'!P150","v":0},{"$f":"'Formato de Hoja de Vida'!D149","v":0}]
[5,{"$f":"'Formato de Hoja de Vida'!E170","v":"00:00:00"},{"$f":"'Formato de Hoja de Vida'!N170","v":"00:00:00"},0,"0 años 0 meses 0 días",null,null,{"$f":"'Formato de Hoja de Vida'!P166","v":0},{"$f":"'Formato de Hoja de Vida'!D165","v":0}]
[6,{"$f":"'Formato de Hoja de Vida'!E186","v":"00:00:00"},{"$f":"'Formato de Hoja de Vida'!N186","v":"00:00:00"},0,"0 años 0 meses 0 días",null,null,{"$f":"'Formato de Hoja de Vida'!P182","v":0},{"$f":"'Formato de Hoja de Vida'!D181","v":0}]
[7,{"$f":"'Formato de Hoja de Vida'!E202","v":"00:00:00"},{"$f":"'Formato de Hoja de Vida'!N202","v":"00:00:00"},0,"0 años 0 meses 0 días",null,null,{"$f":"'Formato de Hoja de Vida'!P198","v":0},{"$f":"'Formato de Hoja de Vida'!D197","v":0}]
[8,{"$f":"'Formato de Hoja de Vida'!E218","v":"00:00:00"},{"$f":"'Formato de Hoja de Vida'!N218","v":"00:00:00"},0,"0 años 0 meses 0 días",null,null,{"$f":"'Formato de Hoja de Vida'!P214","v":0},{"$f":"'Formato de Hoja de Vida'!D213","v":0}]
[9,{"$f":"'Formato de Hoja de Vida'!#REF!","v":{"$error":"#REF!"}},{"$f":"'Formato de Hoja de Vida'!#REF!","v":{"$error":"#REF!"}},{"$error":"#REF!"},{"$error":"#REF!"},null,null,{"$f":"'Formato de Hoja de Vida'!#REF!","v":{"$error":"#REF!"}},{"$f":"'Formato de Hoja de Vida'!#REF!","v":{"$error":"#REF!"}}]
[10,{"$f":"'Formato de Hoja de Vida'!#REF!","v":{"$error":"#REF!"}},{"$f":"'Formato de Hoja de Vida'!#REF!","v":{"$error":"#REF!"}},{"$error":"#REF!"},{"$error":"#REF!"},null,null,{"$f":"'Formato de Hoja de Vida'!#REF!","v":{"$error":"#REF!"}},{"$f":"'Formato de Hoja de Vida'!#REF!","v":{"$error":"#REF!"}}]
["O1",{"$f":"'Formato de Hoja de Vida'!S76","v":"00:00:00"},{"$f":"'Formato de Hoja de Vida'!U76","v":"00:00:00"},0,"0 años 0 meses 0 días",null,null,{"$f":"'Formato de Hoja de Vida'!J76","v":0},{"$f":"'Formato de Hoja de Vida'!B76","v":0}]
["O2",{"$f":"'Formato de Hoja de Vida'!S85","v":"00:00:00"},{"$f":"'Formato de Hoja de Vida'!U85","v":"00:00:00"},0,"0 años 0 meses 0 días",null,null,{"$f":"'Formato de Hoja de Vida'!J85","v":0},{"$f":"'Formato de Hoja de Vida'!B85","v":0}]
["O3",{"$f":"'Formato de Hoja de Vida'!S93","v":"00:00:00"},{"$f":"'Formato de Hoja de Vida'!U93","v":"00:00:00"},0,"0 años 0 meses 0 días",null,null,{"$f":"'Formato de Hoja de Vida'!J93","v":0},{"$f":"'Formato de Hoja de Vida'!B93","v":0}]
["O4",{"$f":"'Formato de Hoja de Vida'!S94","v":"00:00:00"},{"$f":"'Formato de Hoja de Vida'!U94","v":"00:00:00"},0,"0 años 0 meses 0 días",null,null,{"$f":"'Formato de Hoja de Vida'!J94","v":0},{"$f":"'Formato de Hoja de Vida'!B94","v":0}]
["O5",{"$f":"'Formato de Hoja de Vida'!S95","v":"00:00:00"},{"$f":"'Formato de Hoja de Vida'!U95","v":"00:00:00"},0,"0 años 0 meses 0 días",null,null,{"$f":"'Formato de Hoja de Vida'!J95","v":0},{"$f":"'Formato de Hoja de Vida'!B95","v":0}]
[null,"TOTAL ACUMULADO",null,{"$f":"+SUM(D5:D19)","v":{"$error":"#REF!"}},{"$f":"+INT(D20/365.2)&\" años, \"&INT((D20-INT(D20/365.2)*365.2)/30.42)&\" mes y \"&INT(D20-(INT(D20/365.2)*365.2+INT((D20-INT(D20/365.2)*365.2)/30.42)*30.42))&\" días\"","v":{"$error":"#REF!"}},{"$f":"SUM(F5:F14)","v":0},{"$f":"+INT(F20/365.2)&\" años, \"&INT((F20-INT(F20/365.2)*365.2)/30.42)&\" mes y \"&INT(F20-(INT(F20/365.2)*365.2+INT((F20-INT(F20/365.2)*365.2)/30.42)*30.42))&\" días\"","v":"0 años, 0 mes y 0 días"}]